bitfinex-derivatives/quotes_ETHF0:USTF0_20260125
["timestamp","ask_amount","ask_price","bid_price","bid_amount"]
[1769368623626,5.36256003,2844.4,2841.9,0.00436558]
[1769368623627,0.40812454,2843.5,2842.1,2.063]
[1769368626421,0.4073858,2844.0,2842.1,2.063]
[1769368626626,0.4073858,2844.0,2842.3,1.3869816]
[1769368627126,0.40777648,2844.7,2842.3,1.2108416]
[1769368627327,0.40777648,2844.6,2842.6,0.17613]
[1769368627530,0.40777648,2844.5,2842.7,5.583]
[1769368627730,0.40768725,2844.4,2841.9,0.18053558]
[1769368627932,0.40768725,2844.3,2841.9,0.18053558]
[1769368628238,0.58370725,2844.3,2842.0,5.583]
[1769368628436,0.40768725,2844.1,2842.0,5.75916]
[1769368630037,0.58372725,2844.1,2842.0,5.75916]
[1769368630237,0.58446007,2844.0,2842.0,5.75916]
[1769368630430,0.40842007,2843.9,2842.0,5.75916]
[1769368630635,0.58447007,2843.9,2842.0,5.583]
[1769368630836,0.40920233,2843.8,2842.0,5.583]
[1769368631826,0.40920233,2843.8,2842.3,1.2108416]
[1769368633436,0.40920233,2843.8,2842.4,0.17614]
[1769368633640,0.4145073,2844.4,2842.4,0.17614]
[1769368633940,0.4145073,2844.4,2842.5,0.17613]
[1769368635937,0.4145073,2844.4,2842.9,0.1761]
[1769368636144,0.4145073,2844.4,2843.0,2.064]
[1769368637632,0.59283779,2844.3,2843.0,2.064]
[1769368637837,0.41681779,2844.2,2843.0,2.064]
[1769368638039,0.41667265,2844.0,2842.0,3.519]
[1769368638241,0.41667265,2844.0,2842.1,2.064]
[1769368639143,0.41675104,2843.8,2842.1,2.064]
[1769368645748,0.41675104,2843.8,2842.2,0.17615]
[1769368645946,0.41675104,2843.8,2842.3,1.2108416]
[1769368647038,0.41675104,2843.8,2842.2,0.17615]
[1769368647234,0.41675104,2843.8,2841.9,0.00436558]
[1769368647235,0.41610323,2843.6,2841.9,0.00436558]
[1769368647442,0.41610323,2843.6,2842.3,1.2108416]
[1769368648143,0.4159697,2844.1,2842.3,1.2108416]
[1769368648348,0.4159697,2844.1,2842.5,0.17613]
[1769368650758,0.4159697,2844.1,2842.6,0.17612]
[1769368652758,0.41523086,2844.5,2842.9,0.17611]
[1769368652944,0.41523086,2844.5,2843.0,2.064]
[1769368653144,0.41526673,2844.3,2842.7,2.064]
[1769368653650,0.41526673,2844.1,2842.7,2.064]
[1769368654241,0.41514317,2843.9,2842.7,2.064]
[1769368657152,0.17602,2844.3,2842.7,2.064]
[1769368657153,0.4164057,2843.7,2842.7,2.064]
[1769368657650,0.4164057,2843.5,2842.7,2.064]
[1769368662361,0.17606,2843.8,2842.7,2.064]
[1769368662362,0.41448908,2843.3,2842.7,2.064]
[1769368662657,4.15171843,2844.3,2842.7,2.064]
[1769368662850,0.17602,2844.4,2842.7,2.064]
[1769368662851,4.33899288,2844.2,2842.7,2.064]
[1769368663052,4.33899288,2844.1,2842.7,2.064]
[1769368663253,0.17602,2844.4,2842.7,2.064]
[1769368663557,4.33890833,2844.3,2842.7,2.064]
[1769368663756,0.00255739,2844.3,2842.7,2.064]
[1769368664251,0.00255739,2844.3,2842.7,2.24012]
[1769368664453,0.00255739,2844.3,2842.7,2.26690697]
[1769368665157,0.30568921,2844.3,2842.7,2.24012]
[1769368665656,0.30568921,2844.3,2842.7,2.064]
[1769368666061,0.30313182,2844.1,2842.7,2.064]
[1769368666560,0.30313182,2843.9,2842.7,2.064]
[1769368666759,0.30313182,2843.7,2842.7,2.064]
[1769368667762,0.30313182,2843.5,2842.7,2.064]
[1769368672361,0.30313182,2843.5,2841.9,0.00436558]
[1769368672563,0.30313182,2843.5,2841.9,2.06836558]
[1769368675262,0.30313182,2842.9,2841.9,0.00436558]
[1769368675460,4.31952849,2842.8,2841.9,0.00436558]
[1769368675659,0.30313182,2842.7,2841.9,0.00436558]
[1769368675862,0.30313182,2842.7,2840.6,0.17625]
[1769368675863,8.47151901,2842.6,2839.8,3.06163896]
[1769368676063,0.30313182,2842.0,2839.8,3.06163896]
[1769368676254,0.30313182,2841.7,2839.8,2.88533896]
[1769368676459,0.30313182,2841.7,2839.6,2.064]
[1769368676964,0.30632664,2841.7,2839.6,2.0683648]
[1769368677256,0.30632664,2841.7,2839.7,3.52]
[1769368677457,0.30632664,2841.7,2839.8,2.064]
[1769368678565,0.30313182,2842.7,2840.6,1.2108416]
[1769368678767,0.30313182,2842.7,2840.7,2.065]
[1769368679268,0.30313182,2842.5,2840.1,3.2758416]
[1769368679565,0.30730519,2842.5,2840.1,3.4521216]
[1769368680573,0.30730519,2842.5,2840.2,0.17628]
[1769368681471,0.30730519,2842.5,2840.1,3.2758416]
[1769368681472,0.30313182,2842.3,2840.3,0.17627]
[1769368682672,0.30313182,2842.2,2840.3,0.17627]
[1769368684770,0.00417337,2842.5,2840.7,0.17624]
[1769368685072,0.28967585,2842.5,2840.7,0.17624]
[1769368686275,0.28562215,2841.7,2839.6,0.0043648]
[1769368686477,0.28562215,2841.5,2839.6,0.0043648]
[1769368686976,0.28555724,2841.4,2839.6,0.0043648]
[1769368688372,0.28555724,2841.4,2839.7,0.1763]
[1769368688577,0.28555724,2841.4,2839.7,2.2413]
[1769368689567,0.28555724,2841.4,2839.8,3.6983]
[1769368689772,0.2869193,2841.8,2839.9,0.1763]
[1769368691080,0.2869193,2841.8,2839.8,3.522]
[1769368691878,0.28603274,2841.7,2839.8,3.522]
[1769368692175,0.46223274,2841.5,2839.8,3.522]
[1769368692371,0.28603274,2841.4,2839.8,3.522]
[1769368692775,0.28603274,2841.2,2839.8,3.522]
[1769368693682,0.28596839,2841.0,2839.8,3.522]
[1769368694682,0.28654704,2840.8,2839.6,0.0043648]
[1769368696784,0.4621389,2840.6,2839.6,0.0043648]
[1769368696981,0.2836965,2840.4,2837.0,0.27738419]
[1769368697285,0.2836965,2839.4,2836.6,0.1765]
[1769368697485,0.17635,2839.1,2836.6,0.45655675]
[1769368697681,0.2836965,2839.0,2836.6,0.45655675]
[1769368697987,0.28651626,2839.0,2836.7,1.33288475]
[1769368698292,0.28418338,2838.7,2836.7,1.33288475]
[1769368699091,0.28412051,2838.1,2836.7,1.33288475]
[1769368699293,0.28412051,2837.9,2836.7,1.33288475]
[1769368700389,0.27818775,2838.8,2836.7,1.33288475]
[1769368701286,0.27818775,2838.8,2836.7,1.50937475]
[1769368701493,0.27818775,2838.8,2836.9,0.17648]
[1769368701689,0.27818775,2838.8,2837.0,3.70047]
[1769368701993,0.27818775,2838.8,2837.1,0.17647]
[1769368702495,0.27818775,2838.8,2837.0,2.067]
[1769368704296,0.27818775,2838.8,2836.9,3.524]
[1769368704297,0.27818775,2838.8,2837.2,0.17646]
[1769368704495,0.00281976,2839.0,2837.6,0.17644]
[1769368705296,0.00281976,2839.0,2837.7,0.17643]
[1769368705497,0.00281976,2839.0,2837.8,0.17642]
[1769368706091,0.27125415,2839.8,2837.9,0.17642]
[1769368706790,0.27125415,2839.8,2837.2,0.17646]
[1769368706995,0.27095428,2839.7,2837.2,0.17646]
[1769368707187,0.27095428,2839.6,2837.2,0.17646]
[1769368707989,0.27095428,2839.6,2837.3,0.17646]
[1769368708185,0.27095428,2839.6,2837.4,0.17645]
[1769368708693,0.27095428,2839.6,2837.6,0.17644]
[1769368709497,0.27095428,2839.6,2837.1,5.592]
[1769368709902,0.29202895,2839.4,2837.1,5.592]
[1769368710695,0.29202895,2839.4,2836.7,1.33288475]
[1769368710696,0.29202895,2839.3,2836.7,1.33288475]
[1769368710900,0.29193827,2839.1,2836.8,0.17649]
[1769368711200,0.29193827,2838.5,2836.7,1.33288475]
[1769368713909,0.28861053,2838.1,2836.7,1.33288475]
[1769368717710,0.17644,2837.6,2836.7,1.33006499]
[1769368717907,0.28658019,2837.5,2836.7,0.04811891]
[1769368718208,0.17645,2837.5,2836.7,0.04811891]
[1769368718409,0.00357057,2837.6,2836.7,0.04811891]
[1769368718916,0.00357057,2837.6,2836.7,0.28578123]
[1769368719711,0.17637,2838.7,2836.7,0.28578123]
[1769368719910,4.26627664,2838.6,2836.7,0.28578123]
[1769368720107,0.17637,2838.7,2836.7,0.28578123]
[1769368720410,4.44829319,2838.6,2836.7,0.28578123]
[1769368720708,4.27191319,2838.5,2836.7,0.28578123]
[1769368720912,0.17988593,2838.6,2836.7,0.28578123]
[1769368723311,4.28301986,2838.5,2836.7,0.28578123]
[1769368723611,0.17988593,2838.6,2836.7,0.28578123]
[1769368723813,4.28327312,2838.5,2836.7,0.04811891]
[1769368724110,0.17642,2837.9,2836.7,0.04811891]
[1769368724302,4.28327312,2837.8,2836.7,0.04811891]
[1769368724809,4.28327312,2837.7,2836.7,0.04811891]
[1769368725112,4.28327312,2837.6,2836.7,0.04811891]
[1769368725313,0.17643,2837.7,2836.7,0.04811891]
[1769368726313,4.29209434,2837.6,2836.7,0.04811891]
[1769368726516,0.17643,2837.7,2836.7,0.04811891]
[1769368726717,4.29495708,2837.6,2836.7,0.04811891]
[1769368726912,0.17643,2837.7,2836.7,0.04811891]
[1769368727107,4.29481964,2837.6,2836.7,0.04811891]
[1769368727313,4.29481964,2837.5,2836.7,0.04811891]
[1769368727514,4.29481964,2837.4,2836.7,0.04811891]
[1769368727711,0.17643,2837.7,2836.7,0.04811891]
[1769368727906,4.29256045,2837.6,2836.7,0.04811891]
[1769368728110,4.15171843,2838.2,2836.9,0.23766232]
[1769368728310,4.2913096,2838.1,2836.9,0.23766232]
[1769368728510,0.1764,2838.3,2836.9,0.23766232]
[1769368728711,4.29173946,2838.2,2836.9,0.23766232]
[1769368728910,4.29173946,2838.1,2836.9,0.23766232]
[1769368729111,0.1764,2838.3,2836.9,0.23766232]
[1769368729414,0.00350593,2838.6,2836.9,0.23766232]
[1769368729615,4.2936401,2838.5,2836.9,0.23766232]
[1769368729816,4.2936401,2838.4,2836.9,0.23766232]
[1769368730017,0.00350593,2838.6,2836.9,0.23766232]
[1769368730219,4.28601977,2838.5,2836.9,0.23766232]
[1769368730517,4.28601977,2838.4,2836.9,0.23766232]
[1769368730718,0.00350593,2838.6,2836.9,0.23766232]
[1769368730916,4.28073019,2838.5,2836.9,0.23766232]
[1769368731117,4.28073019,2838.4,2836.9,0.23766232]
[1769368731415,0.00350593,2838.6,2836.9,0.23766232]
[1769368731616,4.28148181,2838.5,2836.9,0.23766232]
[1769368731816,4.28148181,2838.4,2836.9,0.23766232]
[1769368732022,0.00350593,2838.6,2836.9,0.23766232]
[1769368732217,4.28251455,2838.5,2836.9,0.23766232]
[1769368732418,0.00350593,2838.6,2836.9,0.23766232]
[1769368732617,4.28540316,2838.5,2836.9,0.23766232]
[1769368732919,0.00350593,2838.6,2836.9,0.23766232]
[1769368732920,4.28384504,2838.4,2836.9,2.068]
[1769368733115,4.28384504,2838.3,2836.9,2.30566232]
[1769368733315,4.28621055,2838.2,2836.9,2.30566232]
[1769368733515,0.17639,2838.4,2836.9,2.30566232]
[1769368733821,4.28642241,2838.3,2837.0,0.23766232]
[1769368734021,0.17639,2838.4,2837.0,0.23766232]
[1769368734223,4.28767906,2838.3,2837.0,0.23766232]
[1769368734519,0.17639,2838.4,2837.0,0.23766232]
[1769368734715,4.29084545,2838.3,2837.0,0.23766232]
[1769368734923,0.17639,2838.4,2837.0,0.23766232]
[1769368735121,4.29200814,2838.3,2837.0,0.23766232]
[1769368735319,0.17639,2838.4,2837.0,0.23766232]
[1769368735521,4.29526847,2838.3,2837.0,0.23766232]
[1769368735819,0.17639,2838.4,2836.9,2.068]
[1769368736019,4.29472488,2838.3,2836.9,2.068]
[1769368736222,4.29472488,2838.3,2836.9,2.30566232]
[1769368739220,4.29472488,2838.3,2836.9,0.23766232]
[1769368739426,4.29472488,2838.3,2837.0,5.595]
[1769368739819,4.47112488,2838.2,2837.0,5.595]
[1769368740123,8.65344623,2838.1,2837.0,5.595]
[1769368740320,8.65345623,2838.0,2837.0,5.595]
[1769368740520,4.29472488,2837.9,2837.0,5.595]
[1769368740921,4.29472488,2837.9,2837.0,5.83266232]
[1769368741122,4.18231135,2838.4,2837.0,5.83266232]
[1769368741318,4.18231135,2838.4,2837.1,0.23766232]
[1769368741526,4.30590142,2838.3,2837.1,0.23766232]
[1769368741727,0.00350593,2838.6,2837.1,0.23766232]
[1769368742024,0.00350593,2838.6,2837.2,0.23766232]
[1769368742214,0.00350593,2838.6,2837.2,0.41412232]
[1769368742421,3.29896985,2840.0,2837.3,0.23766232]
[1769368742624,0.23051777,2840.2,2838.1,0.17641]
[1769368742817,0.23051777,2840.0,2838.2,2.068]
[1769368743022,0.21357198,2839.8,2838.2,5.595]
[1769368743224,0.21357198,2840.3,2838.2,5.595]
[1769368743431,0.00345391,2839.8,2838.2,5.595]
[1769368743625,0.00345391,2839.8,2838.3,0.17639]
[1769368745522,0.00345391,2839.8,2838.4,5.594]
[1769368746028,0.22192832,2839.8,2838.4,5.594]
[1769368748923,0.00345391,2839.8,2838.5,1.21424631]
[1769368751626,0.21803476,2840.3,2838.5,1.39062631]
[1769368752127,8.38229437,2840.4,2839.0,1.21424631]
[1769368752430,8.38229437,2840.4,2839.0,0.17635]
[1769368752619,0.21764592,2840.3,2839.0,0.00444327]
[1769368756929,8.38499837,2840.4,2839.0,1.21868958]
[1769368757128,2.067,2842.0,2839.2,1.39058631]
[1769368757336,0.17622,2841.2,2839.0,0.00444327]
[1769368758030,0.18013157,2841.2,2839.0,0.00444327]
[1769368758231,0.18013157,2841.2,2839.1,3.824]
[1769368759139,0.19590006,2841.1,2839.1,3.824]
[1769368759431,0.19590006,2840.9,2839.1,3.824]
[1769368760735,0.19590006,2840.7,2839.0,0.00444327]
[1769368762535,0.19590006,2840.3,2839.0,0.00444327]
[1769368766741,0.19590006,2840.8,2839.0,0.00444327]
[1769368768641,0.19590006,2840.8,2839.2,1.39058631]
[1769368768946,0.19981163,2841.2,2839.3,0.17633]
[1769368769147,0.19981163,2841.2,2839.4,2.067]
[1769368771355,0.19590006,2841.0,2839.4,2.067]
[1769368774257,0.00391157,2841.2,2839.6,1.38365236]
[1769368774451,0.17899149,2841.2,2839.7,3.7003]
[1769368774646,0.17899149,2841.2,2839.7,3.524]
[1769368776352,0.17507992,2841.0,2839.7,3.524]
[1769368777055,0.00391157,2841.2,2839.7,4.73824631]
[1769368778045,0.00391157,2841.2,2839.8,3.824]
[1769368778749,0.00391157,2841.2,2839.7,8.8975754]
[1769368779854,0.17899149,2841.2,2839.7,7.52431]
[1769368780154,0.17899149,2841.2,2839.8,5.591]
[1769368781248,0.17507992,2841.0,2839.8,5.591]
[1769368782453,0.17507992,2840.8,2839.8,5.591]
[1769368784653,0.17507992,2840.8,2839.8,3.524]
[1769368784859,0.17507992,2840.6,2839.0,0.00444327]
[1769368785054,0.17507992,2840.4,2839.0,0.00444327]
[1769368785358,4.45239864,2840.3,2839.0,0.00444327]
[1769368785551,0.17507992,2840.1,2839.0,0.00444327]
[1769368785746,0.17507992,2839.9,2838.7,5.589]
[1769368785958,0.17507992,2839.7,2838.7,5.589]
[1769368786359,0.17507992,2839.7,2838.7,3.523]
[1769368786861,0.17507992,2839.7,2838.7,3.52705976]
[1769368789552,0.17507992,2839.7,2838.7,0.00405976]
[1769368791059,0.1763,2839.9,2838.7,0.00405976]
[1769368792763,0.17507992,2839.8,2838.7,0.00405976]
[1769368793262,0.17507992,2839.8,2837.8,0.17642]
[1769368793456,0.17507992,2838.9,2836.9,0.18494567]
[1769368793762,0.17635,2839.0,2837.0,0.18494567]
[1769368794166,0.17507992,2839.4,2837.2,0.18494567]
[1769368794366,0.17957227,2839.4,2837.3,0.18494567]
[1769368794862,0.00449235,2839.4,2837.4,0.18494567]
[1769368796654,0.00449235,2839.4,2837.7,0.18494567]
[1769368796860,0.00449235,2839.4,2838.2,0.18494567]
[1769368799463,0.00449235,2839.4,2837.8,5.77694567]
[1769368800365,0.17957227,2839.4,2837.8,5.77694567]
[1769368802469,0.35140992,2839.3,2837.8,5.592]
[1769368803367,0.34641888,2838.8,2837.8,3.525]
[1769368803567,0.17004888,2839.3,2837.8,3.525]
[1769368803772,0.17004888,2837.8,2835.8,10.51999393]
[1769368804074,0.17642,2837.9,2836.1,0.16685936]
[1769368804265,0.17004888,2838.3,2836.6,0.16685936]
[1769368804466,0.17004888,2838.2,2836.1,0.16685936]
[1769368804771,0.17004888,2837.8,2836.1,0.16685936]
[1769368805175,0.17004888,2837.8,2836.7,0.04833809]
[1769368805368,2.067,2838.6,2835.8,2.067]
[1769368805369,0.17646,2837.3,2835.8,2.067]
[1769368805568,0.34650888,2837.2,2835.4,3.525]
[1769368805774,1.38429519,2837.0,2835.2,0.16685936]
[1769368805971,1.38429519,2837.0,2833.2,0.16685936]
[1769368805972,0.17004888,2835.3,2833.2,0.16685936]
[1769368806178,2.24356,2835.6,2833.4,0.16685936]
[1769368806473,0.17004888,2836.4,2833.6,0.16685936]
[1769368806678,0.00415228,2836.4,2834.1,0.16685936]
[1769368806866,0.00415228,2836.4,2834.6,0.16685936]
[1769368807071,0.00415228,2836.4,2834.8,0.16685936]
[1769368807275,0.17004888,2837.4,2835.2,0.16685936]
[1769368807478,0.17642,2837.9,2835.2,0.16685936]
[1769368807775,0.17004888,2838.0,2835.3,0.16685936]
[1769368808167,0.17279312,2838.0,2835.3,0.16685936]
[1769368808363,0.17279312,2838.0,2835.5,0.16685936]
[1769368808768,0.17004888,2837.9,2835.5,0.16685936]
[1769368809475,0.00274424,2838.0,2835.5,0.16685936]
[1769368809672,0.17279312,2838.0,2835.5,0.16685936]
[1769368810873,0.00274424,2838.0,2835.5,0.16685936]
[1769368811672,0.17279312,2838.0,2835.5,0.16685936]
[1769368816670,0.00274424,2838.0,2835.8,0.17213397]
[1769368816875,0.00274424,2838.0,2836.0,0.17213397]
[1769368817183,0.00274424,2838.0,2836.3,0.17213397]
[1769368817386,0.00274424,2838.0,2836.4,2.069]
[1769368818489,0.00274424,2838.0,2836.0,0.17213397]
[1769368818988,0.00274424,2838.0,2836.1,5.596]
[1769368819285,0.16388498,2837.9,2836.1,5.76813397]
[1769368819478,0.16388498,2837.8,2836.1,5.596]
[1769368820386,0.17642,2837.9,2836.2,0.17213397]
[1769368820884,0.00274424,2838.0,2836.2,0.17213397]
[1769368821480,0.00274424,2838.0,2836.3,0.17213397]
[1769368824582,0.00274424,2838.0,2836.4,0.17213397]
[1769368826589,0.00274424,2838.0,2836.6,0.17213397]
[1769368826789,0.17634,2839.2,2836.7,0.17213397]
[1769368826991,4.28585774,2839.1,2836.7,0.17213397]
[1769368827184,4.28585774,2839.0,2836.7,0.17213397]
[1769368827384,4.28585774,2838.9,2836.7,0.17213397]
[1769368827690,4.28585774,2838.8,2836.7,0.17213397]
[1769368828191,0.00249623,2838.9,2836.7,0.17213397]
[1769368828786,0.00249623,2838.9,2837.3,0.17213397]
[1769368828989,0.00249623,2838.9,2837.5,0.17213397]
[1769368829391,0.00249623,2838.9,2837.6,5.596]
[1769368830593,0.00249623,2838.9,2836.7,0.17649]
[1769368830594,0.00249623,2838.9,2837.3,2.068]
[1769368830895,0.17638,2838.6,2837.3,2.068]
[1769368831785,4.29314046,2838.5,2837.3,2.068]
[1769368832089,0.17638,2838.6,2837.3,2.068]
[1769368832393,4.29401881,2838.5,2837.3,2.068]
[1769368832593,0.17638,2838.6,2837.3,2.068]
[1769368832793,4.29587833,2838.5,2837.3,2.068]
[1769368832994,0.17638,2838.6,2837.3,2.068]
[1769368833195,4.29587451,2838.5,2837.3,2.068]
[1769368833393,0.17638,2838.6,2837.3,2.068]
[1769368833588,4.29720084,2838.5,2837.3,2.068]
[1769368833789,0.17638,2838.6,2837.3,2.068]
[1769368833985,4.29720023,2838.5,2837.3,2.068]
[1769368834190,0.17638,2838.6,2837.3,2.068]
[1769368834385,0.16388498,2838.8,2836.3,0.1638935]
[1769368834386,0.16037739,2838.4,2836.3,0.1638935]
[1769368834590,4.29659077,2838.3,2836.3,0.1638935]
[1769368834792,0.16037739,2838.4,2836.3,0.1638935]
[1769368834793,0.17641,2838.1,2836.3,0.1638935]
[1769368834994,4.29479954,2838.0,2836.3,0.1638935]
[1769368835194,0.17641,2838.1,2836.3,0.1638935]
[1769368835489,4.29474155,2838.0,2836.3,0.1638935]
[1769368835695,0.17641,2838.1,2836.3,0.1638935]
[1769368835897,0.17641,2838.1,2835.8,0.28194973]
[1769368835898,4.17289463,2837.5,2835.2,3.517]
[1769368836102,0.17654,2836.0,2833.4,2.068]
[1769368836391,4.29201606,2835.9,2834.5,0.17217172]
[1769368836599,31.49815898,2836.6,2834.5,0.17217172]
[1769368836792,31.32165898,2836.2,2834.6,1.09032331]
[1769368836989,4.37472421,2836.1,2834.6,0.00350917]
[1769368837193,4.37472421,2836.0,2834.7,1.09032331]
[1769368837393,4.37472421,2835.9,2834.7,1.09032331]
[1769368837593,0.17656,2835.7,2834.7,0.71710103]
[1769368837789,4.37472421,2835.6,2834.7,0.71710103]
[1769368837991,4.37472421,2835.5,2834.6,0.00350917]
[1769368838191,0.17658,2835.3,2833.1,3.527]
[1769368838405,4.35765977,2835.2,2833.2,0.17357848]
[1769368838607,0.17663,2834.6,2831.3,0.17683]
[1769368838802,0.17669,2833.6,2831.4,0.17357848]
[1769368839111,31.313955,2832.7,2830.6,0.06145326]
[1769368839405,31.137205,2833.3,2830.6,2.069]
[1769368839617,0.00362266,2832.7,2830.7,0.17359061]
[1769368840205,0.00362266,2832.7,2830.6,0.0028782]
[1769368840505,4.11321298,2831.8,2828.2,0.17150494]
[1769368840708,0.17679,2832.0,2826.8,0.17711]
[1769368840709,0.17693,2829.7,2826.8,0.28539352]
[1769368840908,30.81814455,2829.3,2825.8,0.1715211]
[1769368841114,0.17699,2828.7,2825.8,0.1715211]
[1769368841417,0.17704,2828.0,2826.5,1.89797]
[1769368841710,0.17706,2827.7,2825.7,0.1]
[1769368841912,2.07,2827.6,2825.8,0.180245]
[1769368842214,2.07,2827.5,2825.8,0.18417531]
[1769368842412,0.00310513,2827.6,2825.8,0.18417531]
[1769368843315,2.07410513,2827.6,2825.8,0.18417531]
[1769368843515,2.07410513,2827.6,2825.8,0.00393031]
[1769368843820,2.07410513,2827.6,2825.7,0.1]
[1769368844111,2.25117513,2827.6,2825.7,0.1]
[1769368844309,2.07410513,2827.6,2825.7,0.1]
[1769368844510,0.17709,2827.2,2824.2,1.41630947]
[1769368844714,4.00032634,2827.5,2824.3,0.18450865]
[1769368844921,4.06324568,2827.1,2824.3,0.18450865]
[1769368845116,0.17715,2826.3,2824.3,0.00272226]
[1769368845411,4.06324568,2827.3,2824.3,0.18723122]
[1769368845614,10.40564669,2826.7,2824.3,0.18723122]
[1769368845815,8.33464669,2826.7,2824.5,0.18707802]
[1769368846017,0.00310513,2827.6,2824.8,0.1638935]
[1769368846215,3.533,2829.9,2824.4,2.071]
[1769368846216,3.533,2829.9,2825.8,0.1638935]
[1769368846413,0.17688,2830.5,2826.0,0.1638935]
[1769368846414,6.0,2829.8,2826.0,0.1638935]
[1769368846608,0.15351507,2830.2,2826.1,2.072]
[1769368846813,6.0,2830.1,2826.2,0.1638935]
[1769368847010,6.15313079,2830.1,2826.2,0.1638935]
[1769368847214,0.15313079,2830.0,2826.4,0.1638935]
[1769368847418,0.15313079,2830.0,2826.4,0.16679504]
[1769368847920,0.15612725,2829.6,2826.4,0.16679504]
[1769368848120,0.15612725,2829.4,2826.4,0.16679504]
[1769368848320,6.0,2829.6,2826.4,0.16679504]
[1769368848728,6.0,2829.6,2826.6,0.1638935]
[1769368848916,0.00271758,2830.1,2826.6,0.1638935]
[1769368849218,6.0,2830.0,2826.8,0.1638935]
[1769368850820,6.0,2830.0,2827.0,0.1771]
[1769368851121,6.0,2830.0,2827.1,0.1638935]
[1769368851625,6.0,2830.0,2827.3,0.1638935]
[1769368852422,0.1651336,2829.9,2827.5,0.1638935]
[1769368852619,0.1651336,2829.2,2826.4,0.00290154]
[1769368852819,2.074,2829.8,2826.4,0.00290154]
[1769368852820,0.1651336,2828.8,2826.4,0.00290154]
[1769368853019,0.1651336,2828.6,2826.4,0.00290154]
[1769368853418,6.0,2828.5,2826.4,0.00290154]
[1769368853624,6.0,2828.5,2826.4,0.16679504]
[1769368854229,0.1651336,2828.4,2826.4,0.00290154]
[1769368854524,6.0,2828.5,2826.4,0.16679504]
[1769368856224,2.07671758,2830.1,2826.8,0.1638935]
[1769368856430,6.0,2830.0,2827.0,0.1638935]
[1769368856618,6.0,2830.0,2827.5,0.1638935]
[1769368856927,6.0,2830.0,2827.7,0.1638935]
[1769368857523,6.0,2830.0,2827.9,0.1638935]
[1769368857725,6.0,2830.0,2828.0,0.1638935]
[1769368858030,6.0,2830.0,2828.2,0.1638935]
[1769368858522,6.0,2830.0,2827.6,22.285]
[1769368858523,0.1651336,2829.8,2827.6,22.285]
[1769368858727,0.1651336,2829.3,2827.0,3.3468935]
[1769368859133,2.817,2829.2,2827.1,0.1638935]
[1769368860322,2.817,2829.2,2827.4,0.17707]
[1769368860523,0.00271758,2830.1,2828.1,0.1638935]
[1769368860734,2.817,2830.0,2828.3,0.1638935]
[1769368861025,0.00271758,2830.1,2828.7,0.1638935]
[1769368861223,0.00271758,2830.1,2828.7,0.16720227]
[1769368861432,0.16759858,2832.8,2829.3,0.17695]
[1769368861733,0.16759858,2832.7,2828.7,0.16720227]
[1769368861931,0.16759858,2832.7,2830.4,0.17688]
[1769368862227,0.67814233,2832.6,2830.5,5.257]
[1769368862428,0.16789729,2832.5,2830.6,3.183]
[1769368862826,0.16788441,2832.3,2829.9,0.17692]
[1769368863024,0.67814233,2832.4,2830.6,0.15146111]
[1769368863225,0.00310937,2832.6,2831.2,0.17683]
[1769368863424,0.17659,2835.3,2831.8,0.17679]
[1769368863622,0.17659,2835.3,2831.9,5.257]
[1769368863834,0.51170849,2835.2,2832.2,0.17677]
[1769368864340,2.074,2835.1,2832.3,3.183]
[1769368864558,0.17664,2834.4,2832.3,2.67129151]
[1769368864932,2.0780133,2835.1,2832.3,2.67129151]
[1769368865134,0.16803477,2835.0,2832.3,2.67129151]
[1769368865335,0.16803477,2835.0,2832.7,0.17674]
[1769368865536,0.0040133,2835.1,2832.7,0.17674]
[1769368865741,0.0040133,2835.1,2832.8,0.17674]
[1769368865937,0.0040133,2835.1,2832.3,2.67129151]
[1769368865938,0.0040133,2835.1,2832.9,2.074]
[1769368866147,0.0040133,2835.1,2833.4,0.1767]
[1769368866340,0.16924752,2836.2,2833.9,0.17667]
[1769368866548,3.9883801,2838.5,2834.1,0.17665]
[1769368866549,0.16924752,2837.4,2834.1,0.17665]
[1769368866736,0.16924752,2837.3,2834.2,5.256]
[1769368867432,0.17335563,2837.3,2834.2,5.256]
[1769368867634,0.17335563,2837.3,2834.2,5.2888798]
[1769368867836,0.17335563,2837.3,2834.4,0.0328798]
[1769368868140,0.00410811,2837.3,2834.9,0.06873277]
[1769368868541,0.00410811,2837.3,2835.2,0.06873277]
[1769368868738,0.17632,2839.5,2835.7,0.06462466]
[1769368868739,0.17602837,2838.5,2835.7,0.06462466]
[1769368869038,0.17602837,2838.5,2835.8,5.43055]
[1769368869243,0.17602837,2838.5,2835.7,3.18]
[1769368869445,0.21033651,2838.0,2833.8,0.03734894]
[1769368869633,0.21033651,2837.9,2834.9,3.18]
[1769368870338,0.21251497,2836.8,2834.9,3.18]
[1769368871839,0.21448305,2836.7,2834.9,3.18]
[1769368874734,0.21448305,2836.7,2834.1,0.18670363]
[1769368874940,0.21448305,2836.7,2834.2,3.178]
[1769368875242,0.2197857,2836.5,2834.2,3.178]
[1769368876846,0.35222292,2836.4,2834.2,3.178]
[1769368877742,0.35222292,2836.3,2834.2,3.178]
[1769368877949,0.35222292,2835.5,2833.8,0.00376963]
[1769368878145,0.35478406,2835.5,2833.8,0.00376963]
[1769368878341,0.35222292,2834.9,2833.8,0.00376963]
[1769368878944,0.00256114,2835.5,2833.8,0.00376963]
[1769368879138,0.35478406,2835.5,2833.8,0.00376963]
[1769368880238,0.35222292,2835.2,2833.8,0.00376963]
[1769368881052,0.35222292,2835.0,2833.8,0.00376963]
[1769368882947,0.35478406,2835.5,2833.8,0.00376963]
[1769368883453,0.35222292,2835.4,2833.8,0.00376963]
[1769368885553,0.35222292,2835.1,2833.8,0.00376963]
[1769368886148,0.00256114,2835.5,2833.8,0.00376963]
[1769368886944,0.00256114,2835.5,2833.8,0.33824614]
[1769368887144,0.00256114,2835.5,2833.8,0.00376963]
[1769368890050,0.35478406,2835.5,2833.8,0.00376963]
[1769368890249,0.35222292,2835.4,2833.8,0.00376963]
[1769368890455,0.35222292,2835.2,2833.8,0.00376963]
[1769368890652,0.00256114,2835.5,2833.8,0.00376963]
[1769368891351,4.49064269,2835.4,2833.8,0.00376963]
[1769368891550,4.49083498,2835.3,2833.8,0.00376963]
[1769368891749,0.35222292,2834.8,2832.4,0.33447651]
[1769368891945,0.35222292,2834.6,2832.4,0.33447651]
[1769368892250,4.49020438,2834.5,2832.4,0.33447651]